Cogmind - Beta 15 @@@ ROGUE MODE // 2025.08.19 @ 01:57:45 Player: SnailSD Result: Destroyed by X-67 Chaingunner with Heavy Machine Gun Performance ------------- Evolutions (3) 1500 Regions Visited (6) 1200 Robots Destroyed (56) 280 Value Destroyed (1202) 1202 Prototype IDs (30) 600 Alien Tech Used (0) 0 Bonus (347) 347 TOTAL SCORE: 5129 Bonus ------- Follower Combat Kills 47 Aligned with FarCom 300 Cogmind --------- Core Integrity 0/700 Matter 251/300 Energy 94/100 System Corruption 12% Temperature Cool (0) Movement Core (50) Location -7/Factory Parts ------- > --- POWER (1) -------- (None) > --- PROPULSION (3) --- (None) > --- UTILITY (7) ------ (None) > --- WEAPON (2) ------- (None) > --- INVENTORY (5) ---- Aluminum Leg Lightpack 2.0 Improved Medium Laser Peak State ------------ > --- POWER ------------ (None) > --- PROPULSION ------- Xenon Bombardment Thruster Xenon Bombardment Thruster > --- UTILITY ---------- Lightpack 2.0 Hardened Medium Armor Plating > --- WEAPON ----------- (None) > --- INVENTORY -------- Aluminum Leg Improved Medium Laser [Rating: 41] Favorites ----------- Power Ion Engine Engine Ion Engine Propulsion Titanium Leg Treads Light Treads Leg Titanium Leg Wheel Compact Wheel Flight Unit Xenon Bombardment Thruster Utility High-capacity Storage Unit Device Heat Sink Storage High-capacity Storage Unit Processor Signal Interpreter Hackware Hacking Suite Protection Light Armor Plating Weapon Light EM Pulse Cannon Energy Gun Improved Medium Laser Energy Cannon Light EM Pulse Cannon Ballistic Gun Enhanced Autogun Launcher Improved Grenade Launcher Impact Weapon Heavy Mace Build | -11 -10 -10 -10 -9 -8 -7 ------- Run | Yrd Mat Min Exi Min Mat Fac Slots Evolved 6 | . . . . . 4 2 Power . | . . . . . . . Propulsion 1 | . . . . . 1 . Utility 5 | . . . . . 3 2 Weapon . | . . . . . . . Parts Attached 52 | 7 4 2 . . 25 14 Power 4 | 1 . . . . 3 . Engine 4 | 1 . . . . 3 . Core . | . . . . . . . Reactor . | . . . . . . . Propulsion 14 | 2 . 1 . . 7 4 Treads 3 | 2 . . . . 1 . Leg 5 | . . . . . 5 . Wheel 1 | . . 1 . . . . Hover . | . . . . . . . Flight 5 | . . . . . 1 4 Utility 19 | 2 1 1 . . 9 6 Device 2 | 1 . . . . 1 . Storage 3 | 1 . 1 . . . 1 Processor 6 | . 1 . . . 3 2 Hackware 1 | . . . . . 1 . Protection 7 | . . . . . 4 3 Artifact . | . . . . . . . Weapon 15 | 2 3 . . . 6 4 Energy Gun 8 | 1 1 . . . 3 3 Energy Cannon 2 | . 2 . . . . . Ballistic Gun 2 | 1 . . . . 1 . Ballistic Cannon . | . . . . . . . Launcher 1 | . . . . . . 1 Special Weapon . | . . . . . . . Impact Weapon 2 | . . . . . 2 . Slashing Weapon . | . . . . . . . Piercing Weapon . | . . . . . . . Special Melee Weapon . | . . . . . . . Unidentified Prototypes 7 | . . . . . 6 1 Corrupted Parts 1 | . . . . . 1 . System Corruption 3 | . . . . . 3 . Parts Lost 20 | . 2 . . . 8 10 Power 1 | . . . . . . 1 Propulsion 9 | . 1 . . . 2 6 Utility 4 | . . . . . 3 1 Weapon 6 | . 1 . . . 3 2 Highest Loss Streak 5 | . 1 . . . 2 5 To Critical Strikes . | . . . . . . . Average Backups 13 | 5 7 8 10 11 16 15 Power 2 | 1 2 2 2 2 3 1 Propulsion 3 | 2 3 2 2 2 5 3 Utility 4 | . 1 3 5 6 6 5 Weapon 1 | . 1 1 1 1 2 3 Tool/Special . | . . . . . . . Unused Backups 23 | . 1 . . . 8 14 Power 5 | . . . . . 3 2 Propulsion 7 | . 1 . . . 3 3 Utility 8 | . . . . . 2 6 Weapon 3 | . . . . . . 3 Tool/Special . | . . . . . . . Average Slot Usage (%) 92 | . 90 98 100 100 93 83 Engine 10 | . 14 14 14 14 9 5 Treads 7 | . 19 14 14 14 2 . Leg 12 | . . . . . 21 19 Wheel 3 | . . 12 14 14 1 . Device 2 | . 6 . . . 2 . Storage 10 | . 14 14 14 14 9 6 Processor 14 | . 7 14 14 14 15 17 Hackware 3 | . . . . . 5 5 Protection 6 | . . . . . 8 12 Energy Gun 6 | . 10 . . . 7 6 Energy Cannon 8 | . 7 28 28 28 3 . Ballistic Gun 4 | . 10 . . . 4 5 Peak Build Rating 41 | 9 9 10 13 13 33 41 Average Rating 20 | 5 7 9 11 13 27 31 On Entrance 12 | . 9 8 10 13 13 31 Naked Turns 56 | . . . . . . 56 Heaviest Build 66 | 14 18 53 53 53 60 66 Greatest Support 47 | 40 40 20 16 16 47 44 Greatest Overweight (x) 4 | 4 . 3 3 3 3 2 Average Overweight (x) 1 | . . 2 3 3 1 . Largest Inventory Capacity 40 | 8 8 20 20 20 20 40 Average Capacity 17 | 7 8 19 20 20 20 19 Most Carried 20 | 8 8 10 13 14 20 20 Average Carried 14 | 5 7 8 11 13 18 17 Final Capacity 20 | 8 8 20 20 20 20 5 Final Carried 20 | 8 8 10 13 14 20 5 Class Distribution -------------------- 92% | Mutant 7% | Scavenger-Mutant Dominant Class ---------------- Mutant | -10/Materials Mutant | -10/Mines Mutant | -10/Exiles Mutant | -9/Mines Mutant | -8/Materials Mutant | -7/Factory Resources | -11 -10 -10 -10 -9 -8 -7 ----------- Run | Yrd Mat Min Exi Min Mat Fac Matter Collected 1127 | 283 269 . . 20 391 164 Remotely . | . . . . . . . Salvage Created 1972 | 191 538 . . 19 1060 164 Parts 130 | 20 43 . . . 61 6 Haulers Intercepted 4 | . 1 . . . 3 . Recyclers Shooed 5 | . . . . . 5 . Parts Field Recycled . | . . . . . . . Retrieved Matter . | . . . . . . . Parts Self-Destructed . | . . . . . . . Prevented . | . . . . . . . Kills | -11 -10 -10 -10 -9 -8 -7 ------- Run | Yrd Mat Min Exi Min Mat Fac Combat Hostiles Destroyed 34 | . 13 . . 1 17 3 Melee 1 | . . . . . 1 . Guns 26 | . 11 . . . 12 3 Cannons 1 | . . . . 1 . . AOE 2 | . 2 . . . . . Classes Destroyed 11 | 3 6 . . . 2 . Worker 6 | 2 . . . . 4 . Builder 2 | . 2 . . . . . Tunneler 3 | 3 . . . . . . Hauler 4 | . 1 . . . 3 . Recycler 2 | 1 1 . . . . . Operator 2 | . 1 . . . 1 . Watcher 3 | . 2 . . . 1 . Swarmer 14 | . 9 . . 1 4 . Grunt 16 | . 4 . . . 9 3 Sentry 3 | . . . . . 3 . Hunter 1 | . . . . . 1 . Best Kill Streak 4 | 4 4 . . 1 4 3 Combat Bots Only 4 | . 4 . . 1 4 3 Max Kills in Single Turn 3 | 1 3 . . 1 2 1 Gunslinging 1 | . . . . . 1 . Exploded 2 | . 2 . . . . . Melee 1 | . . . . . 1 . Uniques/NPCs Destroyed . | . . . . . . . Combat | -11 -10 -10 -10 -9 -8 -7 -------- Run | Yrd Mat Min Exi Min Mat Fac Hostile Shots Fired 351 | . 70 . . 2 110 169 Missed 96 | . 21 . . 1 18 56 Hits 255 | . 49 . . 1 92 113 Projectile 255 | . 49 . . 1 92 113 Critical Strikes 6 | . . . . . 1 5 Damage Taken 3731 | . 552 . . 10 1364 1805 Core 1050 | . 94 . . . 240 716 Absorbed by Shields . | . . . . . . . Redirected to Shielding 40 | . . . . . 40 . Core Remaining (%) 72 | 100 . . . 62 56 . Volleys Fired 145 | 13 36 . . 1 71 24 Largest 2 | 2 2 . . 2 2 2 Hottest 112 | 60 112 . . 112 112 81 Shots Fired 266 | 26 71 . . 2 128 39 Gun 230 | 26 65 . . . 103 36 Cannon 33 | . 6 . . 2 25 . Launcher 3 | . . . . . . 3 Special . | . . . . . . . Kinetic 90 | 13 33 . . . 32 12 Thermal 85 | . 7 . . . 58 20 Explosive 3 | . . . . . . 3 Electromagnetic 88 | 13 31 . . 2 38 4 Robot Hit Streak 14 | 8 14 . . 1 9 7 Robot Miss Streak 8 | 2 3 . . 1 8 2 Penetration Max . | . . . . . . . Secondary Targets 3 | . . . . . 3 . Max Gunslinging Chain 1 | . . . . . 1 . Shots Hit Robots 163 | 17 43 . . 1 78 24 Core Hits 94 | 8 25 . . 1 40 20 Critical Kills . | . . . . . . . Critical Parts Destroyed . | . . . . . . . Critical Strikes 10 | . 3 . . . 6 1 Burn 9 | . 2 . . . 6 1 Corrupt 1 | . 1 . . . . . Melee Attacks 11 | . . . . . 11 . Impact 11 | . . . . . 11 . Slashing . | . . . . . . . Piercing . | . . . . . . . Sneak Attacks . | . . . . . . . Combat Hostiles . | . . . . . . . Follow-up Attacks . | . . . . . . . Damage Inflicted 3599 | 376 695 . . 19 1663 846 Guns 2142 | 207 425 . . . 1115 395 Cannons 562 | . 142 . . 19 401 . Explosions 822 | 169 128 . . . 74 451 Melee 61 | . . . . . 61 . Ramming 12 | . . . . . 12 . Kinetic 661 | 80 114 . . . 352 115 Thermal 1276 | 169 195 . . . 639 273 Explosive 451 | . . . . . . 451 Electromagnetic 1138 | 127 386 . . 19 599 7 Impact 61 | . . . . . 61 . Slashing . | . . . . . . . Piercing . | . . . . . . . Highest Corruption 12 | . . . . . 3 12 Average Corruption 3 | . . . . . 3 6 Corruption Purged . | . . . . . . . Corruption Blocked . | . . . . . . . Effects 21 | . . . . . 14 7 Message Errors 7 | . . . . . 6 1 Matter Fused 4 | . . . . . 3 1 Heat Flow Errors 3 | . . . . . . 3 Energy Discharges 1 | . . . . . 1 . Parts Rejected 1 | . . . . . . 1 Data Loss (minor) 3 | . . . . . 3 . Misfires 1 | . . . . . 1 . Weapon Failures 1 | . . . . . . 1 Overload Shots . | . . . . . . . Overflow Damage 28 | 6 6 . . . 16 . Projectiles 6 | . 6 . . . . . Explosions 22 | 6 . . . . 16 . Melee . | . . . . . . . Knockbacks . | . . . . . . . Impact . | . . . . . . . Kinetic . | . . . . . . . Secondary . | . . . . . . . Self-Inflicted Damage 108 | . 51 . . . 57 . Shots 4 | . 2 . . . 2 . Rammed 1 | . . . . . . 1 Targets Rammed 4 | . . . . . 3 1 Kicked 3 | . . . . . 3 . Crushed . | . . . . . . . Highest Temperature 363 | 40 110 . . 51 214 363 Average Temperature 72 | 18 30 . . 28 77 143 Received Heat Transfer 630 | . 54 . . . 459 117 Effects 1 | . . . . . . 1 Damage (minor) 1 | . . . . . . 1 Siege Activations . | . . . . . . . Martial Activations . | . . . . . . . Shielding Activations . | . . . . . . . Robots Disrupted . | . . . . . . . Combat Hostiles . | . . . . . . . Robots Corrupted 3 | . . . . . 3 . Combat Hostiles 3 | . . . . . 3 . Parts Fried 3 | . . . . . 3 . Impact Corruptions . | . . . . . . . Robots Melted 1 | . . . . . 1 . Combat Hostiles 1 | . . . . . 1 . Parts Melted 3 | . 1 . . . 2 . Heat Transferred 3090 | 250 433 . . . 1815 592 Parts Sabotaged . | . . . . . . . Parts Stolen . | . . . . . . . Parts Stripped . | . . . . . . . Power Chain Reactions 6 | 2 2 . . . 2 . Alert | -11 -10 -10 -10 -9 -8 -7 ------- Run | Yrd Mat Min Exi Min Mat Fac Maximum Alert Level 1 | . . . . . 1 . Low Security (%) 99 | 100 100 100 . 100 99 100 Level 1 . | . . . . . . . Level 2 . | . . . . . . . Level 3 . | . . . . . . . Level 4 . | . . . . . . . Level 5 . | . . . . . . . High Security . | . . . . . . . Max Security . | . . . . . . . Peak Influence 201 | 10 179 39 . 83 201 106 Initial 80 | . . 39 . . 8 80 Average 66 | 1 114 23 . 21 90 22 Influence Increases 1383 | 30 429 . . 93 663 168 Destroy 0b10 Robot/C 740 | . 260 . . 60 360 60 Destroy 0b10 Robot/NC 110 | 30 35 . . . 45 . Destroy Leader 164 | . 56 . . 10 88 10 Allied During Kill 12 | . . . . 8 4 . Successful Hack 42 | . 12 . . . 30 . Disable Machine 30 | . . . . . 30 . Destroy Structure 30 | . 6 . . . 16 8 Lose Combat Pursuer 255 | . 60 . . 15 90 90 Influence Decreases 1372 | 30 329 91 9 70 508 335 Entered New Map 183 | . . 61 9 . 15 98 Time Decay 1041 | 30 309 30 . 70 412 190 Lost Part 120 | . 20 . . . 53 47 Lost Ally 28 | . . . . . 28 . Squads Dispatched 7 | . 2 . . . 2 3 Investigation 1 | . 1 . . . . . Extermination 1 | . . . . . . 1 Reinforcement 3 | . 1 . . . 2 . Assault . | . . . . . . . Garrison 2 | . . . . . . 2 Intercept . | . . . . . . . Searches Triggered . | . . . . . . . Construction Impeded . | . . . . . . . Haulers Reinforced . | . . . . . . . Active Scanning Responses . | . . . . . . . Cargo Convoy Interrupts 1 | . . . . . . 1 Stealth | -11 -10 -10 -10 -9 -8 -7 --------- Run | Yrd Mat Min Exi Min Mat Fac Distress Signals 8 | . . . . . 8 . Communications Jammed . | . . . . . . . Distress Signals . | . . . . . . . Times Spotted 86 | . 20 . . 3 39 24 Peak Tracking Total 11 | . 4 . . 3 8 11 Tactical Retreats 9 | . 2 . . 1 3 3 Traps | -11 -10 -10 -10 -9 -8 -7 ------- Run | Yrd Mat Min Exi Min Mat Fac Traps Triggered 2 | . 2 . . . . . Indirectly . | . . . . . . . Trap Hack Attempts . | . . . . . . . Triggered . | . . . . . . . Disarmed . | . . . . . . . Reprogrammed . | . . . . . . . Reused . | . . . . . . . Traps Extracted . | . . . . . . . Installed . | . . . . . . . Triggered . | . . . . . . . Machines | -11 -10 -10 -10 -9 -8 -7 ---------- Run | Yrd Mat Min Exi Min Mat Fac Machines Disabled 2 | . . . . . 2 . Max in Single Turn 1 | . . . . . 1 . Garrison Access 1 | . . . . . 1 . Machines Repaired . | . . . . . . . Machines Dismantled . | . . . . . . . Machines Sabotaged . | . . . . . . . Overloaded Fab Kills . | . . . . . . . Hacking | -11 -10 -10 -10 -9 -8 -7 --------- Run | Yrd Mat Min Exi Min Mat Fac Machines Accessed 11 | . 2 . 2 . 7 . Terminals 7 | . 2 . . . 5 . Fabricators . | . . . . . . . Repair Stations . | . . . . . . . Recycling Units . | . . . . . . . Scanalyzers 1 | . . . . . 1 . Garrison Access 1 | . . . . . 1 . Total Hacks 28 | . 6 . 5 . 17 . Successful 20 | . 4 . 5 . 11 . Failed 8 | . 2 . . . 6 . Catastrophic 1 | . . . . . 1 . Database Lockouts . | . . . . . . . Manual 14 | . 6 . 1 . 7 . Terminals 17 | . 6 . . . 11 . Fabricators . | . . . . . . . Repair Stations . | . . . . . . . Recycling Units . | . . . . . . . Scanalyzers 5 | . . . . . 5 . Garrison Access 1 | . . . . . 1 . Terminal Hacks 11 | . 2 . 5 . 4 . Record 4 | . . . 4 . . . Robot Analysis 3 | . 2 . . . 1 . Fabricator Index 1 | . . . . . 1 . Scanalyzer Index 1 | . . . . . 1 . Hauler Manifests 1 | . . . . . 1 . Proto ID Catalog 1 | . . . 1 . . . Fabricator Hacks . | . . . . . . . Repair Station Hacks . | . . . . . . . Recycling Unit Hacks . | . . . . . . . Scanalyzer 5 | . . . . . 5 . Insert Component 3 | . . . . . 3 . Analyze 2 | . . . . . 2 . Garrison Access Hacks 1 | . . . . . 1 . Seal Access 1 | . . . . . 1 . Unauthorized Hacks 3 | . 2 . . . 1 . Terminals 3 | . 2 . . . 1 . Operators 3 | . 2 . . . 1 . Fabricators . | . . . . . . . Repair Stations . | . . . . . . . Recycling Units . | . . . . . . . Scanalyzers . | . . . . . . . Garrison Access . | . . . . . . . Data Cores Recovered . | . . . . . . . Used . | . . . . . . . Hacking Detections 6 | . 2 . . . 4 . Full Trace Events 1 | . . . . . 1 . Feedback Events . | . . . . . . . Feedback Blocked . | . . . . . . . Robot Schematics Acquired . | . . . . . . . Robots Built . | . . . . . . . Authchips . | . . . . . . . Time . | . . . . . . . Total Robot Build Rating . | . . . . . . . Part Schematics Acquired 2 | . . . . . 2 . Parts Built . | . . . . . . . Authchips . | . . . . . . . Time . | . . . . . . . Total Part Build Rating . | . . . . . . . Parts Repaired . | . . . . . . . Time . | . . . . . . . Parts Recycled . | . . . . . . . Recycled Matter . | . . . . . . . Retrieved Matter . | . . . . . . . Retrieved Components . | . . . . . . . Parts Scanalyzed 2 | . . . . . 2 . Part Schematics Acquired 2 | . . . . . 2 . Parts Damaged . | . . . . . . . Bothacking | -11 -10 -10 -10 -9 -8 -7 ------------ Run | Yrd Mat Min Exi Min Mat Fac Used RIF Installer . | . . . . . . . Robots Hacked . | . . . . . . . Non-combat . | . . . . . . . Combat . | . . . . . . . Robot Hacks Applied . | . . . . . . . Relay Couplers Released . | . . . . . . . Fabnet Peak Effective % . | . . . . . . . Robots Rewired . | . . . . . . . Allies Hacked . | . . . . . . . Hacks Repelled . | . . . . . . . Allies | -11 -10 -10 -10 -9 -8 -7 -------- Run | Yrd Mat Min Exi Min Mat Fac Total Allies 2 | . . . . 2 . . Largest Group 2 | . . . . 2 2 . Highest-Rated Group 46 | . . . . 46 46 . Highest-Rated Ally 31 | . . . . 31 31 . Total Orders . | . . . . . . . Ally Attacks 13 | . . . . 9 4 . Total Damage 103 | . . . . 42 61 . Kills 3 | . . . . 2 1 . Allies Corrupted . | . . . . . . . Allies Melted . | . . . . . . . Intel | -11 -10 -10 -10 -9 -8 -7 ------- Run | Yrd Mat Min Exi Min Mat Fac Active Infowar (turns) 1723 | 19 328 . . . 633 743 Terrain 347 | 19 328 . . . . . T.N.C. 1376 | . . . . . 633 743 Robot Analysis Total 3 | . 2 . . . 1 . Derelict Logs Recovered . | . . . . . . . Drone Launches . | . . . . . . . Drone Recoveries . | . . . . . . . Exploration | -11 -10 -10 -10 -9 -8 -7 ------------- Run | Yrd Mat Min Exi Min Mat Fac Turns Passed 3923 | 159 724 79 386 328 1351 896 Spaces Moved 2036 | 67 363 51 266 194 559 536 Core 124 | 10 . . . . . 114 Treads 421 | 57 363 1 . . . . Legs 746 | . . . . . 410 336 Wheels 659 | . . 50 266 194 149 . Hover . | . . . . . . . Flight 86 | . . . . . . 86 Fastest Speed 37 | 50 160 145 145 145 145 37 Average Speed 158 | 157 160 145 145 145 182 143 Slowest Speed 250 | 250 160 160 145 145 196 200 Overloaded Moves . | . . . . . . . Propulsion Burnouts . | . . . . . . . Robots Hopped 1 | . . . . . . 1 Potential Cave-ins . | . . . . . . . Cave-ins Triggered . | . . . . . . . Exploration Rate (%) 37 | 5 69 11 65 58 41 11 Regions Visited 6 Branch Regions 3 Pre-discovered Areas 1 | . . . 1 . . . Known Exits Taken 4 | . 1 1 1 1 . . Unknown Exits Taken 2 | 1 . . . . 1 . Scrap Searched 1 | . . . . 1 . . Spaces Dug 7 | . . . . . 7 . Terrain Destroyed 44 | 8 5 . . . 18 13 Melee 7 | . . . . . 7 . Projectile . | . . . . . . . AOE 37 | 8 5 . . . 11 13 Terrain Rammed . | . . . . . . . Walls Destroyed . | . . . . . . . Machines Disabled . | . . . . . . . Actions | -11 -10 -10 -10 -9 -8 -7 --------- Run | Yrd Mat Min Exi Min Mat Fac Total 2478 | 94 442 56 266 239 756 625 Wait 151 | . 34 . . 44 39 34 Move 2028 | 66 362 50 265 193 558 534 Hop 1 | . . . . . . 1 Pick Up 43 | 8 2 3 1 1 22 6 Fast Attach 33 | 7 3 . . . 13 10 Attach 12 | . 1 1 . . 8 2 Detach 2 | . . . . . 1 1 Swap 13 | . . 1 . . 10 2 Drop 35 | . 4 1 . . 20 10 Fire 145 | 13 36 . . 1 71 24 Melee 11 | . . . . . 11 . Ram 1 | . . . . . . 1 Kick 3 | . . . . . 3 . Crush . | . . . . . . . Escape Stasis . | . . . . . . . Rewire . | . . . . . . . Trap . | . . . . . . . Miscellaneous . | . . . . . . . Route ------- -11/Scrapyard -10/Materials (discovered 4 exits: *Mat x3 / *Min) -10/Mines -10/Exiles (discovered 2 exits: *Min x2) -9/Mines -8/Materials -7/Factory History --------- Turn | Location | Event 11 | -11/Scrapyard | Discovered new exit (range 16) 160 | -11/Scrapyard | Entered Materials 289 | -10/Materials | Discovered new exit (range 13) 316 | -10/Materials | Build established: Mutant 567 | -10/Materials | Identified exit to Materials 711 | -10/Materials | Discovered exit to Materials (range 5) 815 | -10/Materials | Discovered exit to Materials (range 9) 864 | -10/Materials | Discovered new exit (range 9) 882 | -10/Materials | Identified exit to Mines 884 | -10/Materials | Entered Mines 943 | -10/Mines | Found a damaged Exp. Sensor Array with a note attached 946 | -10/Mines | Found Prototype Device 957 | -10/Mines | Deemed a non-threat by the Exiles lab entrance 957 | -10/Mines | Discovered new exit (range 5) 961 | -10/Mines | Identified exit to Exiles 963 | -10/Mines | Entered Exiles 985 | -10/Exiles | Discovered new exit (range 15) 1000 | -10/Exiles | Met 8R-AWN 1023 | -10/Exiles | Met EX-HEX 1108 | -10/Exiles | Met EX-BIN 1130 | -10/Exiles | Aligned with FarCom system 1132 | -10/Exiles | Given EX-Vault access code 1166 | -10/Exiles | Opened EX-Vault 1177 | -10/Exiles | Found Lightpack 2.0 1217 | -10/Exiles | Warned to stay clear of 0b10 Research branches 1262 | -10/Exiles | Met EX-DEC 1283 | -10/Exiles | Learned location of Zion (-7) 1333 | -10/Exiles | Discovered new exit (range 14) 1347 | -10/Exiles | Identified exit to Mines 1349 | -10/Exiles | Left Exiles lab with Lightpack 2.0 1349 | -10/Exiles | Entered Mines 1626 | -9/Mines | Discovered new exit (range 15) 1645 | -9/Mines | Identified exit to Materials 1677 | -9/Mines | Entered Materials 1677 | -8/Materials | Accompanied by 2 allies 1677 | -8/Materials | Evolved 4 slots: Propulsion x1, Utility x3 1684 | -8/Materials | Led the pair of lost Derelicts to an unsafe place 2875 | -8/Materials | Discovered new exit (range 16) 3028 | -8/Materials | Entered Factory 3028 | -7/Factory | Evolved 2 slots: Utility x2 3716 | -7/Factory | Cargo convoy interrupted 3766 | -7/Factory | Garrison activated, responded to threat 3771 | -7/Factory | Released all parts (7) 3794 | -7/Factory | Core integrity fell below 50% 3802 | -7/Factory | Lost 5 parts (1p2n1u1w) 3877 | -7/Factory | Lost 3 parts (2n1w) 3908 | -7/Factory | System corruption reached 10% 3919 | -7/Factory | Core integrity fell below 20% 3924 | -7/Factory | Destroyed by X-67 Chaingunner with Heavy Machine Gun Last Messages --------------- 03849_ Acquired Xenon Bombardment Thruster. 03852_ Slug penetrates X-62 Marksman. 03866_ System corrupted: Heat flow error (+123). 03881_ Acquired Hrd. Medium Armor Plating. 03884_ Slammed into K-01 Serf. 03889_ System corrupted: Heat flow error (+155). 03899_ Acquired 40 matter. 03906_ Acquired 34 matter. 03912_ Penetrated by Slug. 03912_ Xenon Bombardment Thruster destroyed. 03914_ Slug penetrates Wall. 03916_ Dropped Hrd. Medium Armor Plating. 03917_ Slug penetrates Wall. 03917_ Xenon Bombardment Thruster destroyed. 03919_ Penetrated by Slug. 03920_ R-06 Scavenger collects Hrd. Medium Armor Plating. 03922_ Penetrated by Slug. 03923_ P-60 Hacker resets K-01 Serf, system corruption cleaned. Map ----- +----------------------------------------------------+ | # #??????????????????+ """" # """ | | ##### ##?????????????????# """" # | | ???# #?????????????????+ """" # ""% | | ???# #?????????????????# """" # ""% | | ???# #?????????????????# """" # """ | | ???## ##?????????????????# # """ | | ????# #??????????????????# + | | ????# #??????????????????# # | | ????# #??????????????????############## | | ????# #???????????????????????????????##### | | ????# #????????????? ?????????????????#+####"# | | ????# #????????????? ?????????????????????= " | | ????# #????????????# #?????????????????? " | | ????# #????????????# #???????????????? | | ????# #????????????# #???????????????# | | ????# #????????????# #???????????????# """""" | | ????# #????????????# #???????????????# | | ????# #????????????#p +???????????????######### | | ????# ############## #???????????????????????? | | ????# # # #???????????????????????? | | ????# # """ """ #h ##############??????????? | | ????# # """ """ # #?????????? | | ????# # """ """ # #?????????? | | ????# # #x #?????????? | | ????# # """ """ + #?????????? | | ????# + """ """ # k @ t #?????????? | | ????### """ """ # #########???????????????? | | ??????# # #???????????????????????? | | ??????# # h #########???????????????? | | ??????# # # #???????????????? | | ??????# x # # #???????????????? | | #######+#####+###### # "" #???????????????? | | # #????# # "" #???????????????? | | # #????# # """ #???????????????? | | ! """""" #^###### # """ #???????????????? | | """""" # hh h i # """ #???????????????? | | """""" # # #???????????????? | | """""" + + #???????????????? | | # # #???????????????? | | """""" # ^ # #???????????????? | | """""" ######## # !!!#???????????????? | | """""" #??????# # ! #???????????????? | | """""" #??????# # !! #???????????????? | | ? #??????# # #???????????????? | | #####?#######??????# + #???????????????? | | ???????????????????# # #???????????????? | | ???????????????????# #########???????????????? | | ???????????????????# #???????????????????????? | | ?????????????????### #???????????????????????? | | ?????????????????# #???????????????????????? | +----------------------------------------------------+ Best States ------------- Heat Dissipation 41 Energy Generation 14 Energy Capacity 280 Matter Stores 300 Matter Capacity 300 Sight Range 16 Terrain Scan Range 16 Terrain Scan Density 10 Armor Coverage 375 Power Shielding 66 Evasion (%) 62 Targeting Accuracy 10 Launcher Accuracy 20 Recoil Reduction 2 Offensive Hacking 10 Item Schematics ----------------- Imp. VTOL Module | -8/Materials | Scanalyzed Lrg. Storage Unit | -8/Materials | Scanalyzed Robot Schematics ------------------ None Fabricated ------------ Nothing Repaired ---------- Nothing Alien Tech Used ----------------- None Achievements -------------- root@ Challenges ------------ None Game ------ Seed BurstFocalDeflector Manual? 0 Play Time 00:36:45 Cumulative 27.3 hours Start 2025.08.17 @ 17:10:18 End 2025.08.19 @ 01:57:45 Sessions 3 Manual Loads 0 Difficulty Rogue Special Mode None Game No. 47 Rogue 47 Adventurer 0 Explorer 0 Win Type - Total 0 Types 0/0/0/0/0/0/0/0/0/0 Lore% 32 Gallery% 30 Achievement% 28 Wizard Run 0 Options --------- Layout 1 ASCII 0 Keyboard 0 Movement Numpad Keybinds 0 Fullscreen 1 Font 24/Smallcaps Map View 50x35 Zoom Use 0% Tactical HUD 1 Map Filters NONE Filters NONE Steam 1 RUN: 6918a6b9-4ea1-4a42-a568-05e6d4767232